[Event "29th CRO-chT Junior 2020"]
[Site "Cakovec"]
[Date "2020.07.16"]
[Round "6.12"]
[White "Novosel, Lovro"]
[Black "Martic, Filip"]
[Result "1-0"]
[ECO "E62"]
[WhiteElo "1719"]
[BlackElo "1656"]
[Annotator "NA RC"]
[PlyCount "101"]
[EventDate "2020.07.14"]
[EventType "team-tourn"]
[EventCountry "CRO"]
[SourceTitle "playchess.com"]
[Source "ChessBase"]
[SourceQuality "1"]
[TimeControl "5400+30"]

1. Nf3 {[%emt 0:00:30]} Nf6 {[%emt 0:00:30]} 2. g3 {[%emt 0:00:30]} g6 {[%emt 0:00:30]} 3. Bg2 {[%emt 0:00:30]} Bg7 {[%emt 0:01:30]} 4. O-O {[%emt 0:00:30]} O-O {[%emt 0:00:30]} 5. d4 {[%emt 0:01:30]} d6 {[%emt 0:02:30]} 6. c4 {[%emt 0:02:30]} Nc6 {[%emt 0:05:30]} 7. Nc3 {[%emt 0:04:30]} e5 {[%emt 0:01:30]} 8. e3 {[%emt 0:03:30]} Nd7 {[%emt 0:03:30]} 9. Rb1 {[%emt 0:01:30]} f5 {[%emt 0:02:30]} 10. b4 {[%emt 0:03:30]} a6 {[%emt 0:03:30]} 11. b5 {[%emt 0:01:30]} axb5 {[%emt 0:00:30]} 12. cxb5 {[%emt 0:00:30]} Ne7 {[%emt 0:00:30]} 13. Qb3+ {[%emt 0:00:30]} Kh8 {[%emt 0:00:30]} 14. Ng5 {[%emt 0:00:30]} Nf6 {[%emt 0:01:30]} 15. Nf7+ {[%emt 0:00:30]} Rxf7 {[%emt 0:00:30]} 16. Qxf7 {[%emt 0:00:30]} e4 {[%emt 0:05:30]} 17. Qb3 {[%emt 0:00:30]} g5 {[%emt 0:01:30]} 18. Bd2 {[%emt 0:06:30]} h5 {[%emt 0:05:30]} 19. f3 {[%emt 0:04:30]} d5 {[%emt 0:01:30]} 20. fxe4 {[%emt 0:03:30]} dxe4 {[%emt 0:00:00]} 21. Rb2 {[%emt 0:07:30]} Ng6 {[%emt 0:04:00]} 22. Bh3 {[%emt 0:04:30]} g4 {[%emt 0:03:30]} 23. Bg2 {[%emt 0:00:30]} h4 {[%emt 0:00:30]} 24. Rf2 {[%emt 0:07:30]} hxg3 {[%emt 0:01:30]} 25. hxg3 {[%emt 0:00:30]} Qd6 {[%emt 0:00:30]} 26. Ne2 {[%emt 0:00:30]} Be6 {[%emt 0:00:30]} 27. Qb4 {[%emt 0:00:30]} Qd8 {[%emt 0:01:30]} 28. Qc5 {[%emt 0:11:30]} Bf8 {[%emt 0:01:30]} 29. Qc2 {[%emt 0:00:00]} Bd6 {[%emt 0:00:30]} 30. Bf1 {[%emt 0:02:00]} Nh5 {[%emt 0:05:30]} 31. Rh2 {[%emt 0:00:30]} Qg5 {[%emt 0:00:30]} 32. Nf4 {[%emt 0:00:30]} Ngxf4 {[%emt 0:00:30]} 33. exf4 {[%emt 0:00:30]} Qg6 {[%emt 0:00:30]} 34. Bb4 {[%emt 0:00:30]} Bxb4 {[%emt 0:01:30]} 35. Rxb4 {[%emt 0:00:30]} Rxa2 {[%emt 0:00:00]} 36. Qxc7 {[%emt 0:01:30]} Rxh2 {[%emt 0:00:00]} 37. Qd8+ {[%emt 0:01:30]} Kh7 {[%emt 0:00:30]} 38. Kxh2 {[%emt 0:00:30]} Nf6 {[%emt 0:02:30]} 39. Qe7+ {[%emt 0:00:30]} Bf7 {[%emt 0:00:30]} 40. Bc4 {[%emt 0:00:30]} Kg7 {[%emt 0:00:00]} 41. Kg1 {[%emt 0:03:30]} Nh5 {[%emt 0:00:00]} 42. Kf2 {[%emt 0:01:30]} Qf6 {[%emt 0:01:30]} 43. Qxf7+ {[%emt 0:01:30]} Qxf7 {[%emt 0:00:30]} 44. Bxf7 {[%emt 0:00:30]} Kxf7 {[%emt 0:00:30]} 45. Rc4 {[%emt 0:00:30]} Ke6 {[%emt 0:00:30]} 46. Rc7 {[%emt 0:00:30]} Kd5 {[%emt 0:00:30]} 47. Rd7+ {[%emt 0:00:30]} Kc4 {[%emt 0:00:30]} 48. b6 {[%emt 0:01:30]} Kb5 {[%emt 0:00:30]} 49. Rxb7 {[%emt 0:00:30]} Kc6 {[%emt 0:00:00]} 50. Rh7 {[%emt 0:00:30]} e3+ {[%emt 0:00:00]} 51. Kxe3 {[%emt 0:00:00]} 1-0

[Event "29th CRO-chT Junior 2020"]
[Site "Cakovec"]
[Date "2020.07.16"]
[Round "6.17"]
[White "Damjanovic, Stjepan"]
[Black "Topalic, Fran"]
[Result "1-0"]
[ECO "B13"]
[WhiteElo "1867"]
[BlackElo "1741"]
[Annotator "NA RC"]
[PlyCount "65"]
[EventDate "2020.07.14"]
[EventType "team-tourn"]
[EventCountry "CRO"]
[SourceTitle "playchess.com"]
[Source "ChessBase"]
[SourceQuality "1"]
[TimeControl "5400+30"]

{[%evp 8,65,21,24,28,-13,23,8,10,-12,8,-12,14,-8,0,-17,14,-16,-14,-19,37,15,28,2,50,18,70,18,45,46,80,0,26,30,94,107,174,165,188,122,143,14,13,2,0,-22,0,-47,-35,-28,0,0,281,333,29991,29992,29996,29997,29997,662]} 1. e4 {[%emt 0:00:30]} c6 {[%emt 0:00:30]} 2. d4 {[%emt 0:00:00]} d5 {[%emt 0:00:00]} 3. exd5 {[%emt 0:00:00]} cxd5 {[%emt 0:00:00]} 4. Bd3 {[%emt 0:00:00]} Nc6 {[%emt 0:00:30]} 5. c3 {[%emt 0:00:00]} Nf6 {[%emt 0:00:00]} 6. Ne2 {[%emt 0:01:30]} ({White should try} 6. Bf4 $14) 6... e6 {[%emt 0:01:00] B13: Caro-Kann: Exchange Variation and Panov-Botvinnik Attack.} 7. Bf4 {[%emt 0:00:30]} Bd6 {[%emt 0:00:30]} 8. Na3 {[%emt 0:01:30]} O-O {[%emt 0:00:30]} 9. O-O {[%emt 0:00:30]} a6 {[%emt 0:00:30] [#]} 10. Rc1 $146 {[%emt 0:01:30]} ({Predecessor:} 10. Nc2 Re8 11. Ne3 Qc7 12. Bxd6 Qxd6 13. Qc2 Bd7 14. Rad1 Rac8 15. Qb1 Na5 16. Rfe1 {1-0 (45) Manco,J-Shiroma,G Peru 1997}) 10... b5 {[%emt 0:00:30]} 11. Bb1 {[%emt 0:00:30]} Na5 {[%emt 0:01:30]} 12. Qd3 {[%emt 0:02:30]} Bxf4 {[%emt 0:00:30]} 13. Nxf4 {[%emt 0:00:30]} g6 {[%emt 0:00:00]} (13... Nc4 $11) 14. Qe3 {[%emt 0:01:30]} Qd6 {[%emt 0:02:00]} 15. Nd3 {[%emt 0:01:30]} Kg7 {[%emt 0:00:30]} 16. Ne5 {[%emt 0:00:30]} Nc6 {[%emt 0:02:30]} 17. f4 {[%emt 0:00:30]} Qc7 {[%emt 0:01:30]} 18. Nc2 {[%emt 0:00:30]} a5 {[%emt 0:00:30]} 19. Qh3 {[%emt 0:01:30]} ({Better is} 19. Ne1 $16) 19... Ba6 {[%emt 0:04:30]} 20. Ne3 {[%emt 0:02:30]} h5 {[%emt 0:01:30]} (20... Ne4 $14) 21. Qg3 {[%emt 0:00:30]} Ne4 {[%emt 0:02:30]} (21... Nxe5 $16 {might work better.} 22. fxe5 Nh7) 22. Bxe4 $1 {[%emt 0:01:30]} dxe4 {[%emt 0:00:30]} 23. f5 {[%emt 0:01:30]} Nxe5 {[%emt 0:01:30]} 24. f6+ $2 {[%emt 0:00:30]} (24. dxe5 $18 b4 25. cxb4) 24... Kh7 {[%emt 0:00:00]} 25. dxe5 {[%emt 0:00:30]} Rfd8 {[%emt 0:01:00]} 26. Kh1 {[%emt 0:04:30]} Rd3 {[%emt 0:00:30]} 27. Qg5 {[%emt 0:00:30]} Qc5 {[%emt 0:01:30]} 28. Rfe1 {[%emt 0:03:30]} Rad8 {[%emt 0:02:30]} 29. g4 {[%emt 0:01:30]} Rxe3 $4 {[%emt 0:00:00]} (29... hxg4 $11 30. Qh4+ (30. Nxg4 Rh3 $17) 30... Kg8) 30. Rxe3 {[%emt 0:01:30]} ({Stronger than} 30. Qxe3 Qxe5 31. Qg3 Qxg3 $11) 30... Rd5 {[%emt 0:01:00]} (30... hxg4 $18 31. h3 g3) 31. gxh5 {[%emt 0:00:30]} Rxe5 {[%emt 0:00:00]} 32. hxg6+ {[%emt 0:00:30]} fxg6 {[%emt 0:00:00]} 33. Rh3+ {[%emt 0:00:30]} 1-0

[Event "29th CRO-chT Junior 2020"]
[Site "Cakovec"]
[Date "2020.07.16"]
[Round "6.18"]
[White "Matota, Dominik"]
[Black "Juric, Ester"]
[Result "1-0"]
[ECO "B80"]
[WhiteElo "1807"]
[BlackElo "1663"]
[Annotator "NA RC"]
[PlyCount "53"]
[EventDate "2020.07.14"]
[EventType "team-tourn"]
[EventCountry "CRO"]
[SourceTitle "playchess.com"]
[Source "ChessBase"]
[SourceQuality "1"]
[TimeControl "5400+30"]

{[%evp 8,46,35,20,35,0,49,10,3,32767,-7,4,0,0,94,75,106,94,176,57,156,0,158,150,447,447,427,409,389,423,415,525,503,32767,505,591,822,32767,929,491,1431]} 1. e4 {[%emt 0:00:30]} c5 {[%emt 0:00:30]} 2. Nf3 {[%emt 0:00:00]} d6 {[%emt 0:00:00]} 3. d4 {[%emt 0:00:00]} cxd4 {[%emt 0:00:00]} 4. Nxd4 {[%emt 0:00:00]} Nf6 {[%emt 0:00:30]} 5. Nc3 {[%emt 0:00:00]} a6 {[%emt 0:00:00]} 6. f3 {[%emt 0:00:00]} b5 {[%emt 0:01:00]} 7. Be3 {[%emt 0:01:00]} e6 {[%emt 0:01:30]} 8. a4 {[%emt 0:01:30] B80: Sicilian Scheveningen: 6 g3 and 6 Be3, including English Attack.} b4 $1 {[%emt 0:04:30]} 9. Na2 {[%emt 0:02:30]} e5 {[%emt 0:13:30]} 10. Nb3 $1 {[%emt 0:00:30] [#]} ({Of course not} 10. Nxb4 exd4 11. Qxd4 Nbd7 $17) 10... a5 $146 {[%emt 0:00:30]} (10... d5 $11) ({Predecessor:} 10... Nc6 11. Bc4 Qc7 12. O-O Be7 13. c3 bxc3 14. Nxc3 Nb4 15. Qe2 O-O {0-1 (33) Sarana,A (2664)-Vachier Lagrave,M (2777) Germany 2019}) 11. c3 {[%emt 0:03:30]} bxc3 {[%emt 0:05:30]} 12. Nxc3 {[%emt 0:00:00]} Ba6 {[%emt 0:08:30]} (12... Be6 $16 {keeps fighting.}) 13. Nb5 {[%emt 0:04:00]} (13. Bb5+ $16 Bxb5 14. axb5) 13... Be7 {[%emt 0:14:30]} (13... d5 $14) 14. Qd2 {[%emt 0:05:30]} (14. Rc1 $16 Bxb5 15. Bxb5+ Nbd7 16. O-O) 14... Bxb5 $2 {[%emt 0:02:30]} (14... O-O $11) 15. Bxb5+ {[%emt 0:00:30]} Nfd7 $2 {[%emt 0:01:30]} (15... Nbd7 $16 16. O-O O-O) 16. Qd5 {[%emt 0:01:30]} Na6 {[%emt 0:04:30]} 17. Bxd7+ {[%emt 0:11:30]} Kxd7 {[%emt 0:00:00]} 18. Qb5+ {[%emt 0:00:00]} Ke6 {[%emt 0:00:00]} 19. Nd4+ {[%emt 0:00:00]} Kf6 $18 {[%emt 0:00:30]} 20. f4 {[%emt 0:19:30]} g6 {[%emt 0:04:30]} 21. fxe5+ {[%emt 0:01:30]} dxe5 {[%emt 0:00:30]} 22. O-O+ {[%emt 0:00:00]} Kg7 {[%emt 0:00:30]} 23. Qxe5+ {[%emt 0:00:00]} Kg8 {[%emt 0:00:00]} (23... f6 $142 24. Ne6+ Kg8) 24. Nc6 {[%emt 0:05:30]} Bd6 {[%emt 0:01:00]} 25. Nxd8 {[%emt 0:01:30]} Bxe5 {[%emt 0:00:30]} 26. Nxf7 {[%emt 0:00:30]} Bxb2 {[%emt 0:00:00]} 27. Nh6+ {[%emt 0:00:00]} 1-0

[Event "29th CRO-chT Junior 2020"]
[Site "Cakovec"]
[Date "2020.07.16"]
[Round "6.19"]
[White "Mandaric, Fran"]
[Black "Borzan, Matej"]
[Result "1-0"]
[ECO "B08"]
[WhiteElo "1671"]
[BlackElo "1746"]
[Annotator "NA RC"]
[PlyCount "47"]
[EventDate "2020.07.14"]
[EventType "team-tourn"]
[EventCountry "CRO"]
[SourceTitle "playchess.com"]
[Source "ChessBase"]
[SourceQuality "1"]
[TimeControl "5400+30"]

1. e4 {[%emt 0:00:30]} d6 {[%emt 0:00:30]} 2. d4 {[%emt 0:00:00]} Nf6 {[%emt 0:00:30]} 3. Nc3 {[%emt 0:00:00]} g6 {[%emt 0:00:00]} 4. Nf3 {[%emt 0:00:30]} Bg7 {[%emt 0:00:00]} 5. Bc4 {[%emt 0:00:00]} O-O {[%emt 0:00:00]} 6. Qe2 {[%emt 0:00:00]} Nbd7 {[%emt 0:00:00]} 7. e5 {[%emt 0:02:30]} dxe5 {[%emt 0:06:30]} 8. dxe5 {[%emt 0:00:00]} Ng4 {[%emt 0:00:30]} 9. e6 {[%emt 0:06:00]} Nde5 {[%emt 0:01:30]} 10. exf7+ {[%emt 0:11:30]} Kh8 {[%emt 0:02:30]} 11. h3 {[%emt 0:08:30]} Nxf3+ {[%emt 0:00:30]} 12. gxf3 {[%emt 0:02:30]} Ne5 {[%emt 0:00:30]} 13. Bg5 {[%emt 0:02:30]} Nxc4 {[%emt 0:07:30]} 14. Bxe7 {[%emt 0:13:30]} Qd4 {[%emt 0:01:30]} 15. Bxf8 {[%emt 0:02:30]} Bxf8 {[%emt 0:00:00]} 16. Qe8 {[%emt 0:06:30]} Qe5+ {[%emt 0:04:00]} 17. Ne4 {[%emt 0:03:30]} Kg7 {[%emt 0:04:30]} 18. Rd1 {[%emt 0:13:30]} Qf5 {[%emt 0:06:30]} 19. O-O {[%emt 0:12:46]} Qxf3 {[%emt 0:05:30]} 20. Ng5 {[%emt 0:03:52]} Qh5 {[%emt 0:03:30]} 21. Qxf8+ {[%emt 0:00:34]} Kf6 {[%emt 0:00:30]} 22. Qd8+ {[%emt 0:00:28]} Ke5 {[%emt 0:00:00]} 23. f4+ {[%emt 0:01:04]} Kf5 {[%emt 0:00:00]} 24. f8=Q# {[%emt 0:00:16]} 1-0

[Event "29th CRO-chT Junior 2020"]
[Site "Cakovec"]
[Date "2020.07.17"]
[Round "7.3"]
[White "Baric, Marko"]
[Black "Mandaric, Fran"]
[Result "1-0"]
[ECO "B31"]
[WhiteElo "1831"]
[BlackElo "1671"]
[Annotator "NA RC"]
[PlyCount "91"]
[EventDate "2020.07.14"]
[EventType "team-tourn"]
[EventCountry "CRO"]
[SourceTitle "playchess.com"]
[Source "ChessBase"]
[SourceQuality "1"]
[TimeControl "5400+30"]

{[%evp 8,91,25,10,18,1,22,0,29,7,0,0,5,13,0,-6,0,0,0,-5,-10,-9,-7,-22,28,18,78,69,79,61,245,265,333,350,418,399,414,380,375,340,385,418,468,517,490,505,495,525,600,32767,32767,32767,337,339,321,350,328,371,384,389,452,498,447,443,506,575,594,614,651,717,669,811,1076,1064,1053,1292,1753,12833,1854,5443,5115,32767,32767,32767,32767,29974]} 1. e4 {[%emt 0:00:30]} c5 {[%emt 0:00:30]} 2. Nf3 {[%emt 0:00:30]} Nc6 {[%emt 0:00:00]} 3. Bb5 {[%emt 0:01:30]} g6 {[%emt 0:00:00]} 4. O-O {[%emt 0:00:30]} Bg7 {[%emt 0:01:30]} 5. Re1 {[%emt 0:00:00]} e5 {[%emt 0:01:30]} 6. c3 {[%emt 0:03:00]} Nge7 {[%emt 0:03:30]} 7. d3 {[%emt 0:04:30] 7.d3 is better than 7.d4.} a6 {[%emt 0:11:30] B31: Sicilian: 2...Nc6 3 Bb5 g6.} 8. Ba4 {[%emt 0:01:30]} O-O {[%emt 0:01:30]} 9. Nbd2 {[%emt 0:02:30]} d6 {[%emt 0:02:30]} 10. Nf1 {[%emt 0:02:30]} b5 {[%emt 0:07:30]} 11. Bc2 {[%emt 0:01:30] [#]} a5 $146 {[%emt 0:04:30]} ({Predecessor:} 11... f5 12. Bb3+ Kh8 13. Ng5 Qe8 14. Qf3 h6 15. Qh3 fxe4 16. Be6 exd3 17. Bxc8 Qxc8 18. g4 Nd5 {0-1 (38) Perez Celis,A (1819)-Perez Barreto,A (1718) Tenerife 2010}) 12. a4 {[%emt 0:07:30]} b4 {[%emt 0:03:30]} 13. Ng3 {[%emt 0:01:30]} Rb8 {[%emt 0:02:30]} 14. Bb3 {[%emt 0:06:30]} Bg4 {[%emt 0:04:30]} 15. Bc4 {[%emt 0:11:30]} bxc3 {[%emt 0:12:30]} 16. bxc3 {[%emt 0:00:30]} d5 {[%emt 0:00:30]} 17. exd5 {[%emt 0:04:30]} Nxd5 {[%emt 0:00:30]} 18. Ne4 {[%emt 0:01:30]} Nxc3 $2 {[%emt 0:07:30]} (18... Kh8 $14) 19. Nxc3 {[%emt 0:08:30]} e4 {[%emt 0:00:30]} 20. Nxe4 {[%emt 0:01:30]} Bxa1 {[%emt 0:02:30]} 21. Bg5 {[%emt 0:00:30]} Bxf3 {[%emt 0:07:30]} 22. gxf3 {[%emt 0:06:30]} ({Less strong is} 22. Qxa1 Qd4 $18) 22... Qd4 {[%emt 0:06:00]} 23. Qxa1 {[%emt 0:12:43]} Qxa1 {[%emt 0:01:08]} 24. Rxa1 {[%emt 0:00:17]} Kg7 {[%emt 0:04:16]} 25. Bf6+ {[%emt 0:00:53]} Kh6 {[%emt 0:00:20]} 26. Nxc5 {[%emt 0:01:07]} Rfe8 {[%emt 0:02:42]} 27. Ne4 {[%emt 0:01:40]} Ne5 {[%emt 0:00:31]} (27... Re5 {[%emt 0:00:53]}) 28. Bxe5 {[%emt 0:00:30]} Rxe5 {[%emt 0:00:39]} 29. Bxf7 {[%emt 0:00:30]} Rf5 {[%emt 0:00:23]} 30. Bc4 {[%emt 0:01:46]} Rxf3 {[%emt 0:00:29]} 31. Kg2 {[%emt 0:00:24]} Rf4 {[%emt 0:01:00]} 32. Bb5 {[%emt 0:01:20]} Rbf8 {[%emt 0:01:01]} 33. Rc1 {[%emt 0:01:09]} g5 {[%emt 0:01:45]} 34. Rc6+ {[%emt 0:00:48]} Kg7 {[%emt 0:01:56]} 35. h3 {[%emt 0:02:05]} g4 {[%emt 0:02:35]} 36. h4 {[%emt 0:01:55]} Kh8 {[%emt 0:00:49]} 37. Ra6 {[%emt 0:00:31]} g3 {[%emt 0:03:02]} 38. fxg3 {[%emt 0:00:35]} Rf1 {[%emt 0:00:15]} 39. h5 {[%emt 0:00:46]} Kg7 {[%emt 0:02:11]} 40. h6+ {[%emt 0:00:17]} Kh8 {[%emt 0:00:09]} 41. Rxa5 {[%emt 0:00:22]} Rb1 {[%emt 0:00:21]} 42. Ra7 {[%emt 0:00:44]} Rb2+ {[%emt 0:00:12]} 43. Kh3 {[%emt 0:00:06]} Rb1 {[%emt 0:01:12]} 44. Ng5 {[%emt 0:01:04]} Rh1+ {[%emt 0:00:30]} 45. Kg2 {[%emt 0:00:30]} Rxh6 {[%emt 0:00:30]} 46. Nf7+ {[%emt 0:00:30] Double Attack} 1-0

[Event "29th CRO-chT Junior 2020"]
[Site "Cakovec"]
[Date "2020.07.17"]
[Round "7.11"]
[White "Mijic, Karlo"]
[Black "Sagovac, Kristijan"]
[Result "0-1"]
[ECO "B33"]
[WhiteElo "1729"]
[BlackElo "1839"]
[Annotator "NA RC"]
[PlyCount "68"]
[EventDate "2020.07.14"]
[EventType "team-tourn"]
[EventCountry "CRO"]
[SourceTitle "playchess.com"]
[Source "ChessBase"]
[SourceQuality "1"]
[TimeControl "5400+30"]

{[%evp 24,68,4,-16,-2,-9,25,0,8,-13,-17,-21,0,-52,-22,-35,-29,-68,-43,-68,-43,-243,-273,-240,-20,-14,-11,-21,-20,-189,-70,-119,-58,-68,-17,-366,26,-1338,-1287,-29994,-29995,-29995,-29996,-29996,-804,-29997,-29998]} 1. e4 {[%emt 0:00:30]} c5 {[%emt 0:00:30]} 2. Nf3 {[%emt 0:00:00]} Nc6 {[%emt 0:00:00]} 3. d4 {[%emt 0:00:00]} cxd4 {[%emt 0:00:00]} 4. Nxd4 {[%emt 0:00:00]} Nf6 {[%emt 0:00:00]} 5. Nc3 {[%emt 0:00:00]} e5 {[%emt 0:00:00]} 6. Ndb5 {[%emt 0:00:30]} d6 {[%emt 0:00:00]} 7. Bg5 {[%emt 0:00:30]} a6 {[%emt 0:00:00]} 8. Na3 {[%emt 0:00:00]} b5 {[%emt 0:00:00]} 9. Nd5 {[%emt 0:00:00]} Be7 {[%emt 0:00:00]} 10. Bxf6 {[%emt 0:00:00]} Bxf6 {[%emt 0:00:00]} 11. c4 {[%emt 0:00:00]} b4 {[%emt 0:00:00]} 12. Nc2 {[%emt 0:00:30]} a5 {[%emt 0:00:30]} 13. Nce3 {[%emt 0:00:30] B33: Sicilian: Pelikan and Sveshnikov Variations.} O-O {[%emt 0:00:30] [#]} 14. h4 $146 {[%emt 0:00:30]} ({Predecessor:} 14. Bd3 Bg5 15. Qh5 g6 16. Qd1 Be6 17. O-O Nd4 18. a3 bxa3 19. Rxa3 Rb8 20. b3 Qc8 21. Rxa5 Nxb3 {½-½ (32) Bartsch,C (1886)-Soreghy,J (1763) LSS email 2012}) 14... Bb7 {[%emt 0:03:30]} ({Don't go for} 14... Bxh4 $2 15. Qh5 $18) 15. g3 {[%emt 0:00:30]} Nd4 {[%emt 0:02:30]} 16. Bh3 {[%emt 0:00:00]} g6 {[%emt 0:02:30]} 17. Kf1 {[%emt 0:04:00]} Bg7 {[%emt 0:00:30]} 18. Kg2 {[%emt 0:00:00]} Ra7 {[%emt 0:11:30]} 19. Qd3 {[%emt 0:01:00]} Bc6 {[%emt 0:09:30]} 20. Rad1 {[%emt 0:01:30] [#]} f5 $1 {[%emt 0:06:30]} 21. exf5 {[%emt 0:00:30]} Raf7 {[%emt 0:00:00]} 22. f6 $2 {[%emt 0:04:30]} (22. Rhf1 $15 gxf5 23. f4) 22... Qxf6 $1 {[%emt 0:05:00]} 23. Rhf1 {[%emt 0:03:30]} Qd8 $2 {[%emt 0:02:30]} (23... Qf3+ $19 24. Kg1 e4) 24. Nc2 {[%emt 0:06:30]} Nf5 {[%emt 0:16:30]} 25. Kg1 {[%emt 0:02:30]} Kh8 {[%emt 0:00:30]} 26. Nde3 $2 {[%emt 0:02:30] [#]} (26. Bg2 $11 {and White stays safe.}) 26... Bf3 {[%emt 0:06:30]} (26... Nxh4 $1 $19 {[%mdl 512]} 27. Ne1 (27. gxh4 Qxh4) 27... Qg5) 27. Rd2 {[%emt 0:02:30] [#]} ({White should try} 27. Nxf5 $15 e4 28. Qxd6 Bxd1 29. Rxd1 Qxd6 30. Nxd6 Rxf2 31. Ne3) 27... e4 {[%emt 0:02:30]} (27... Nxh4 $1 $17 28. gxh4 Qxh4) 28. Qd5 {[%emt 0:14:30]} Be5 {[%emt 0:01:30]} (28... Bxb2 $17 29. Nxf5 gxf5 30. Qxd6 Qxd6 31. Rxd6 Be2) 29. Bg2 $2 {[%emt 0:01:30]} (29. c5 $1 $11) 29... Nxh4 $2 {[%emt 0:01:30]} ({Worse is} 29... Bxb2 30. Bxf3 exf3 31. Nxf5 $11) (29... Bxg2 $19 30. Nxg2 Qb6) 30. gxh4 $2 {[%emt 0:00:00]} (30. Qxe5+ $11 dxe5 31. Rxd8 Rxd8 32. gxh4) 30... Qxh4 {[%emt 0:00:30]} 31. Re1 {[%emt 0:04:00]} Bh2+ {[%emt 0:01:30]} 32. Kh1 {[%emt 0:01:30]} Bg3+ {[%emt 0:01:30] Discovered Attack} 33. Kg1 {[%emt 0:00:30]} Qh2+ {[%emt 0:00:00]} 34. Kf1 {[%emt 0:00:30]} Bxg2+ {[%emt 0:00:00]} 0-1

[Event "29th CRO-chT Junior 2020"]
[Site "Cakovec"]
[Date "2020.07.17"]
[Round "7.12"]
[White "Martic, Filip"]
[Black "Jaksic, Josip"]
[Result "1-0"]
[ECO "D37"]
[WhiteElo "1656"]
[BlackElo "1616"]
[Annotator "NA RC"]
[PlyCount "25"]
[EventDate "2020.07.14"]
[EventType "team-tourn"]
[EventCountry "CRO"]
[SourceTitle "playchess.com"]
[Source "ChessBase"]
[SourceQuality "1"]
[TimeControl "5400+30"]

1. d4 {[%emt 0:00:30]} Nf6 {[%emt 0:00:30]} 2. Nf3 {[%emt 0:00:00]} d5 {[%emt 0:00:00]} 3. c4 {[%emt 0:00:00]} e6 {[%emt 0:00:00]} 4. Nc3 {[%emt 0:00:30]} Be7 {[%emt 0:00:30]} 5. Bf4 {[%emt 0:02:30]} O-O {[%emt 0:00:30]} 6. e3 {[%emt 0:00:30]} b6 {[%emt 0:00:30]} 7. cxd5 {[%emt 0:00:30]} Nxd5 {[%emt 0:00:00]} 8. Nxd5 {[%emt 0:00:30]} Qxd5 {[%emt 0:00:00]} 9. Bd3 {[%emt 0:03:30]} c5 {[%emt 0:05:30]} 10. Qc2 {[%emt 0:07:30]} h6 {[%emt 0:00:30]} 11. Be4 {[%emt 0:00:30]} Qd7 {[%emt 0:08:30]} 12. Bxa8 {[%emt 0:00:30]} Ba6 {[%emt 0:05:30]} 13. O-O-O {[%emt 0:03:30]} 1-0

[Event "29th CRO-chT Junior 2020"]
[Site "Cakovec"]
[Date "2020.07.17"]
[Round "7.16"]
[White "Colev, Ivor"]
[Black "Zekic, Patrik"]
[Result "1/2-1/2"]
[ECO "C03"]
[WhiteElo "1893"]
[BlackElo "1699"]
[Annotator "NA RC"]
[PlyCount "83"]
[EventDate "2020.07.14"]
[EventType "team-tourn"]
[EventCountry "CRO"]
[SourceTitle "playchess.com"]
[Source "ChessBase"]
[SourceQuality "1"]
[TimeControl "5400+30"]

{[%evp 8,81,0,11,14,0,10,-6,43,12,37,27,70,15,24,-32,-7,-16,-26,-23,-10,-16,-22,-26,-8,-122,32767,32767,32767,32767,32767,-78,-77,-87,-74,-97,-103,-120,-82,-105,-49,-90,-82,-143,0,-2,-3,0,0,0,-2,0,0,-2,0,0,0,0,-1,-4,0,32767,32767,32767,32767,0,0,-47,-10,-14,0,0,5,0,10,8]} 1. e4 {[%emt 0:00:30]} e6 {[%emt 0:00:30]} 2. d4 {[%emt 0:00:00]} d5 {[%emt 0:00:00]} 3. Nd2 {[%emt 0:00:00]} Be7 {[%emt 0:00:00]} 4. Bd3 {[%emt 0:12:30]} c5 {[%emt 0:00:30]} 5. dxc5 {[%emt 0:03:30]} Nf6 {[%emt 0:01:30]} 6. exd5 {[%emt 0:00:30]} Qxd5 {[%emt 0:01:30]} 7. Ngf3 {[%emt 0:00:30]} Bxc5 {[%emt 0:00:30] C03: French Tarrasch: Unusual Black 3rd moves.} 8. O-O {[%emt 0:00:30]} O-O {[%emt 0:00:30]} 9. Qe2 {[%emt 0:00:30]} Nc6 {[%emt 0:32:30]} 10. Bc4 {[%emt 0:04:30]} Qh5 {[%emt 0:13:30] [#]} 11. b3 $146 {[%emt 0:17:30]} ({Predecessor:} 11. Ne4 $11 Nxe4 12. Qxe4 e5 13. Ng5 Bb6 14. c3 Bd7 15. Be3 Bxe3 16. Qxe3 Kh8 17. Rad1 Bf5 18. f3 {1-0 (25) Ginsburg,G (2509)-Stojanovic,M (2539) Germany 2015}) 11... b6 {[%emt 0:11:30]} 12. Bb2 {[%emt 0:01:30]} Bb7 {[%emt 0:03:30]} 13. a3 {[%emt 0:09:30]} Nd5 {[%emt 0:05:30]} 14. Bxd5 {[%emt 0:10:30]} Qxd5 {[%emt 0:00:30]} 15. b4 {[%emt 0:01:30]} Nd4 {[%emt 0:06:46]} 16. Qe5 {[%emt 0:11:30]} (16. Bxd4 $1 $11 {remains equal.} Bxd4 17. c4) 16... Nxf3+ {[%emt 0:08:42]} 17. Nxf3 {[%emt 0:00:30]} Qxe5 {[%emt 0:00:05]} 18. Nxe5 {[%emt 0:00:00]} Be7 {[%emt 0:00:18]} 19. c4 {[%emt 0:07:00]} Rfd8 {[%emt 0:01:11]} 20. Rfd1 {[%emt 0:03:57]} f6 {[%emt 0:00:46]} 21. Nd3 {[%emt 0:01:10]} Rac8 {[%emt 0:04:26]} 22. c5 {[%emt 0:05:35]} Be4 {[%emt 0:01:16]} 23. Nf4 {[%emt 0:01:50]} Rxd1+ {[%emt 0:01:26]} 24. Rxd1 {[%emt 0:00:13]} e5 {[%emt 0:00:03]} 25. Rd7 {[%emt 0:02:14]} (25. cxb6 $142 axb6 26. f3) 25... Bxc5 {[%emt 0:02:44]} (25... Kf8 $17 26. Ne6+ Kf7 27. Nxg7 bxc5) 26. bxc5 {[%emt 0:01:10]} exf4 {[%emt 0:00:41]} 27. Rd4 {[%emt 0:02:52]} Bg6 {[%emt 0:00:16]} 28. cxb6 {[%emt 0:00:48]} axb6 {[%emt 0:00:27]} 29. Rxf4 {[%emt 0:00:34]} b5 {[%emt 0:00:59]} 30. Rb4 {[%emt 0:00:25]} Be8 {[%emt 0:00:56]} 31. h3 {[%emt 0:00:12]} Rc2 {[%emt 0:00:26]} 32. Kf1 {[%emt 0:01:41]} Bc6 {[%emt 0:00:11]} 33. Kg1 {[%emt 0:00:16]} Kf7 {[%emt 0:00:08]} 34. f3 {[%emt 0:00:57]} Ke6 {[%emt 0:00:09]} 35. Kf1 {[%emt 0:00:20]} Bd5 {[%emt 0:00:15]} 36. Kg1 {[%emt 0:00:25]} Bc4 {[%emt 0:00:37]} 37. Bd4 {[%emt 0:00:43]} Ra2 {[%emt 0:00:36]} 38. Bb2 $1 {[%emt 0:00:16]} g6 {[%emt 0:00:51]} 39. Kf2 {[%emt 0:00:09]} Kf5 {[%emt 0:02:34]} 40. g3 {[%emt 0:01:01]} h5 {[%emt 0:00:19]} 41. Ke3 $11 {[%emt 0:00:27]} g5 {[%emt 0:00:50]} 42. Kf2 {[%emt 0:00:38]} 1/2-1/2